Cogmind - Beta 12 @@@ ROGUE MODE // 2024.01.10 @ 11:09:08 Player: DAFT Result: Self-destructed Performance ------------- Evolutions (1) 500 Regions Visited (2) 400 Robots Destroyed (35) 175 Value Destroyed (574) 574 Prototype IDs (0) 0 Alien Tech Used (0) 0 Bonus (0) 0 TOTAL SCORE: 1649 Bonus ------- None Cogmind --------- Core Integrity 10/400 Matter 293/300 Energy 100/100 System Corruption 0% Temperature Warm (143) Movement Walking (190) Ox1 Location -9/Materials Parts ------- > --- POWER (1) -------- (None) > --- PROPULSION (3) --- Aluminum Leg Aluminum Leg > --- UTILITY (3) ------ Medium Storage Unit Medium Armor Plating Hacking Suite > --- WEAPON (2) ------- Beam Rifle Light Assault Rifle > --- INVENTORY (10) --- Improved Ion Engine Heat Sink Large Storage Unit Medium Matter Pod (100) Sensor Array Recalibrator Beam Rifle Light Assault Rifle Peak State ------------ > --- POWER ------------ Light Ion Engine > --- PROPULSION ------- Aluminum Leg Aluminum Leg Wheel > --- UTILITY ---------- Medium Storage Unit Medium Armor Plating Hacking Suite > --- WEAPON ----------- Beam Rifle Light Assault Rifle > --- INVENTORY -------- Improved Ion Engine Heat Sink Large Storage Unit Medium Matter Pod Sensor Array Recalibrator Beam Rifle Light Assault Rifle [Rating: 14] Favorites ----------- Power Light Ion Engine Engine Light Ion Engine Propulsion Aluminum Leg Leg Aluminum Leg Wheel Wheel Utility ECM Suite Device ECM Suite Storage Medium Storage Unit Hackware Hacking Suite Protection Medium Armor Plating Weapon Assault Rifle Energy Gun Beam Rifle Ballistic Gun Assault Rifle Special Melee Weapon Datajack Build | -11 -10 -9 ------- Run | Jun Mat Mat Slots Evolved 2 | . . 2 Power . | . . . Propulsion 1 | . . 1 Utility 1 | . . 1 Weapon . | . . . Parts Attached 29 | 6 9 14 Power 4 | 1 1 2 Engine 4 | 1 1 2 Core . | . . . Reactor . | . . . Propulsion 8 | 2 2 4 Treads . | . . . Leg 7 | 2 2 3 Wheel 1 | . . 1 Hover . | . . . Flight . | . . . Utility 7 | 1 4 2 Device 1 | . 1 . Storage 4 | 1 3 . Processor . | . . . Hackware 1 | . . 1 Protection 1 | . . 1 Artifact . | . . . Weapon 10 | 2 2 6 Energy Gun 1 | . . 1 Energy Cannon . | . . . Ballistic Gun 8 | 2 2 4 Ballistic Cannon . | . . . Launcher . | . . . Special Weapon . | . . . Impact Weapon . | . . . Slashing Weapon . | . . . Piercing Weapon . | . . . Special Melee Weapon 1 | . . 1 Unidentified Prototypes . | . . . Parts Lost 10 | . 1 9 Power 2 | . . 2 Propulsion 4 | . 1 3 Utility 1 | . . 1 Weapon 3 | . . 3 Highest Loss Streak 6 | . 1 6 To Critical Strikes . | . . . Average Slot Usage (%) 92 | . 98 80 Engine 12 | . 14 8 Leg 24 | . 27 15 Wheel 2 | . . 7 Device 9 | . 12 1 Storage 13 | . 14 11 Hackware 3 | . . 11 Protection 1 | . . 4 Energy Gun 1 | . . 6 Ballistic Gun 23 | . 28 13 Naked Turns . | . . . Heaviest Build 29 | 14 29 24 Greatest Support 20 | 20 20 20 Greatest Overweight (x) 3 | 3 1 3 Average Overweight (x) . | . . . Largest Inventory Capacity 15 | 8 15 10 Average Capacity 9 | 7 9 10 Most Carried 10 | 4 10 10 Average Carried 7 | 2 7 7 Final Capacity 10 | 8 10 10 Final Carried 10 | 3 10 8 Class Distribution -------------------- 83% | Mutant 16% | Scavenger-Mutant Dominant Class ---------------- Mutant | -10/Materials Scavenger-Mutant | -9/Materials Resources | -11 -10 -9 ----------- Run | Jun Mat Mat Matter Collected 942 | 206 422 314 Remotely . | . . . Salvage Created 836 | . 476 360 Parts 75 | . 50 25 Haulers Intercepted . | . . . Recyclers Shooed 4 | . 3 1 Parts Field Recycled . | . . . Retrieved Matter . | . . . Parts Self-Destructed . | . . . Prevented . | . . . Kills | -11 -10 -9 ------- Run | Jun Mat Mat Combat Hostiles Destroyed 22 | . 13 9 Guns 22 | . 13 9 Classes Destroyed 7 | . 5 2 Worker 5 | . 3 2 Mechanic 1 | . . 1 Operator 2 | . 2 . Watcher 5 | . 3 2 Swarmer 14 | . 9 5 Grunt 6 | . 4 2 Sentry 2 | . . 2 Best Kill Streak 8 | . 8 4 Combat Bots Only 3 | . 3 3 Max Kills in Single Turn 2 | . 2 1 Gunslinging 1 | . 1 . Exploded . | . . . Melee . | . . . Uniques/NPCs Destroyed . | . . . Combat | -11 -10 -9 -------- Run | Jun Mat Mat Damage Taken 1872 | . 564 1308 Core 528 | . 138 390 Absorbed by Shields . | . . . Regen/Repaired (Parts) 139 | . 54 85 Core Remaining (%) 72 | 100 44 . Volleys Fired 131 | . 57 74 Largest 2 | . 2 2 Hottest 76 | . 40 76 Shots Fired 229 | . 114 115 Gun 229 | . 114 115 Cannon . | . . . Launcher . | . . . Special . | . . . Kinetic 205 | . 114 91 Thermal 24 | . . 24 Explosive . | . . . Electromagnetic . | . . . Robot Hit Streak 10 | . 10 9 Robot Miss Streak 8 | . 8 6 Penetration Max . | . . . Secondary Targets 4 | . 3 1 Max Gunslinging Chain 1 | . 1 1 Shots Hit Robots 134 | . 67 67 Core Hits 57 | . 30 27 Critical Kills 1 | . 1 . Critical Parts Destroyed . | . . . Critical Strikes 3 | . 1 2 Burn 2 | . . 2 Destroy 1 | . 1 . Melee Attacks 2 | . . 2 Impact . | . . . Slashing . | . . . Piercing . | . . . Sneak Attacks . | . . . Combat Hostiles . | . . . Follow-up Attacks . | . . . Damage Inflicted 1447 | . 789 658 Guns 1442 | . 789 653 Cannons . | . . . Explosions . | . . . Melee . | . . . Ramming 5 | . . 5 Kinetic 1296 | . 789 507 Thermal 146 | . . 146 Explosive . | . . . Electromagnetic . | . . . Impact . | . . . Slashing . | . . . Piercing . | . . . Highest Corruption . | . . . Average Corruption . | . . . Corruption Purged . | . . . Corruption Blocked . | . . . Overload Shots . | . . . Overflow Damage . | . . . Projectiles . | . . . Explosions . | . . . Melee . | . . . Knockbacks . | . . . Impact . | . . . Kinetic . | . . . Secondary . | . . . Self-Inflicted Damage . | . . . Shots . | . . . Rammed . | . . . Targets Rammed 1 | . . 1 Kicked 1 | . . 1 Crushed . | . . . Highest Temperature 312 | . 12 312 Average Temperature 103 | . 7 107 Received Heat Transfer 306 | . 60 246 Siege Activations . | . . . Robots Corrupted . | . . . Combat Hostiles . | . . . Parts Fried . | . . . Impact Corruptions . | . . . Robots Melted . | . . . Combat Hostiles . | . . . Parts Melted 1 | . . 1 Heat Transferred 518 | . . 518 Parts Sabotaged . | . . . Parts Stolen . | . . . Parts Stripped . | . . . Power Chain Reactions . | . . . Missiles Intercepted . | . . . Alert | -11 -10 -9 ------- Run | Jun Mat Mat Peak Influence 196 | . 196 167 Initial 2 | . . 2 Average 60 | . 62 67 Maximum Alert Level . | . . . Low Security (%) 100 | 100 100 100 Level 1 . | . . . Level 2 . | . . . Level 3 . | . . . Level 4 . | . . . Level 5 . | . . . High Security . | . . . Max Security . | . . . Squads Dispatched 3 | . 2 1 Investigation . | . . . Extermination . | . . . Reinforcement 3 | . 2 1 Assault . | . . . Garrison . | . . . Intercept . | . . . Searches Triggered . | . . . Construction Impeded . | . . . Haulers Reinforced . | . . . Active Scanning Responses . | . . . Cargo Convoy Interrupts . | . . . Stealth | -11 -10 -9 --------- Run | Jun Mat Mat Distress Signals 7 | . 4 3 Communications Jammed . | . . . Distress Signals . | . . . Times Spotted 55 | . 35 20 Peak Tracking Total 7 | . 7 6 Tactical Retreats 5 | . 5 . Traps | -11 -10 -9 ------- Run | Jun Mat Mat Traps Triggered 2 | . 2 . Indirectly . | . . . Trap Hack Attempts . | . . . Triggered . | . . . Disarmed 10 | . 10 . Reprogrammed . | . . . Reused . | . . . Traps Extracted . | . . . Installed . | . . . Triggered . | . . . Machines | -11 -10 -9 ---------- Run | Jun Mat Mat Machines Disabled 2 | . 1 1 Max in Single Turn 1 | . 1 1 Machines Repaired . | . . . Machines Sabotaged . | . . . Overloaded Fab Kills . | . . . Hacking | -11 -10 -9 --------- Run | Jun Mat Mat Machines Accessed 7 | . 6 1 Terminals 4 | . 4 . Fabricators . | . . . Repair Stations 2 | . 1 1 Recycling Units 1 | . 1 . Scanalyzers . | . . . Garrison Access . | . . . Total Hacks 20 | . 17 3 Successful 14 | . 11 3 Failed 6 | . 6 . Catastrophic . | . . . Database Lockouts . | . . . Manual . | . . . Terminals 12 | . 12 . Fabricators . | . . . Repair Stations 5 | . 2 3 Recycling Units 3 | . 3 . Scanalyzers . | . . . Garrison Access . | . . . Terminal Hacks 7 | . 7 . Alert Level 1 | . 1 . Locate Traps 1 | . 1 . Disarm Traps 3 | . 3 . Registered Components 1 | . 1 . Zone Layout 1 | . 1 . Fabricator Hacks . | . . . Repair Station Hacks 5 | . 2 3 Scan Component 3 | . 1 2 Repair 2 | . 1 1 Recycling Unit Hacks 2 | . 2 . Recycle Component 1 | . 1 . Process 1 | . 1 . Scanalyzer . | . . . Garrison Access Hacks . | . . . Unauthorized Hacks . | . . . Terminals . | . . . Fabricators . | . . . Repair Stations . | . . . Recycling Units . | . . . Scanalyzers . | . . . Garrison Access . | . . . Data Cores Recovered . | . . . Used . | . . . Hacking Detections 4 | . 3 1 Full Trace Events 2 | . 1 1 Feedback Events . | . . . Feedback Blocked . | . . . Robot Schematics Acquired . | . . . Robots Built . | . . . Authchips . | . . . Time . | . . . Total Robot Build Rating . | . . . Part Schematics Acquired . | . . . Parts Built . | . . . Authchips . | . . . Time . | . . . Total Part Build Rating . | . . . Parts Repaired 2 | . 1 1 Time 52 | . 26 26 Parts Recycled 1 | . 1 . Recycled Matter 220 | . 220 . Retrieved Matter . | . . . Retrieved Components . | . . . Parts Scanalyzed . | . . . Part Schematics Acquired . | . . . Parts Damaged . | . . . Bothacking | -11 -10 -9 ------------ Run | Jun Mat Mat Used RIF Installer . | . . . Robots Hacked 1 | . . 1 Non-combat . | . . . Combat 1 | . . 1 Robot Hacks Applied 1 | . . 1 parse_system 1 | . . 1 Relay Couplers Released . | . . . Fabnet Peak Effective % . | . . . Robots Rewired . | . . . Allies Hacked . | . . . Hacks Repelled . | . . . Allies | -11 -10 -9 -------- Run | Jun Mat Mat Total Allies . | . . . Largest Group . | . . . Highest-Rated Group . | . . . Highest-Rated Ally . | . . . Total Orders . | . . . Ally Attacks . | . . . Total Damage . | . . . Kills . | . . . Allies Corrupted . | . . . Allies Melted . | . . . Intel | -11 -10 -9 ------- Run | Jun Mat Mat Robot Analysis Total . | . . . Derelict Logs Recovered . | . . . Drone Launches . | . . . Drone Recoveries . | . . . Exploration | -11 -10 -9 ------------- Run | Jun Mat Mat Turns Passed 2107 | 111 1396 600 Spaces Moved 1247 | 83 919 245 Core 36 | 10 . 26 Treads . | . . . Legs 1199 | 73 919 207 Wheels 12 | . . 12 Hover . | . . . Flight . | . . . Fastest Speed 50 | 50 120 95 Average Speed 126 | 119 120 152 Slowest Speed 200 | 200 190 200 Overloaded Moves . | . . . Propulsion Burnouts . | . . . Robots Hopped . | . . . Cave-ins Triggered . | . . . Exploration Rate (%) 36 | 5 90 14 Regions Visited 2 Branch Regions . Pre-discovered Areas . | . . . Known Exits Taken . | . . . Unknown Exits Taken 2 | 1 1 . Scrap Searched . | . . . Spaces Dug . | . . . Terrain Destroyed . | . . . Melee . | . . . Projectile . | . . . AOE . | . . . Terrain Rammed . | . . . Walls Destroyed . | . . . Machines Disabled . | . . . Actions | -11 -10 -9 --------- Run | Jun Mat Mat Total 1557 | 93 1096 368 Wait 125 | . 99 26 Move 1245 | 82 918 245 Hop . | . . . Pick Up 18 | 5 9 4 Fast Attach 12 | 4 3 5 Attach 8 | 2 1 5 Detach . | . . . Swap 9 | . 5 4 Drop 6 | . 4 2 Fire 131 | . 57 74 Melee 2 | . . 2 Ram . | . . . Kick 1 | . . 1 Crush . | . . . Escape Stasis . | . . . Rewire . | . . . Trap . | . . . Miscellaneous . | . . . Route ------- -11/Junkyard -10/Materials (discovered 5 exits: *Mat x3 / [*Min x2]) -9/Materials (discovered 1 exit: [*Sto]) History --------- Turn | Location | Event 14 | -11/Junkyard | Discovered new exit (range 15) 112 | -11/Junkyard | Entered Materials 112 | -10/Materials | Discovered new exit (range 7) 263 | -10/Materials | Discovered new exit (range 6) 307 | -10/Materials | Build established: Mutant 360 | -10/Materials | Discovered new exit (range 12) 596 | -10/Materials | Core integrity fell below 50% 721 | -10/Materials | Repaired Aluminum Leg 814 | -10/Materials | Discovered new exit (range 4) 986 | -10/Materials | Discovered new exit (range 16) 1508 | -10/Materials | Entered another Materials area 1508 | -9/Materials | Evolved 2 slots: Propulsion x1, Utility x1 1602 | -9/Materials | Core integrity fell below 50% 1629 | -9/Materials | Lost 6 parts (1p2n1u2w) 1904 | -9/Materials | Discovered new exit (range 7) 1965 | -9/Materials | Repaired Aluminum Leg 2062 | -9/Materials | Build established: Scavenger-Mutant 2069 | -9/Materials | Core integrity fell below 20% 2108 | -9/Materials | Self-destructed Last Messages --------------- Rating: 1 Time: 26 02010_ W-16 Scout destroyed. 02016_ Acquired 19 matter. 02044_ K-01 Serf cleans the Electrolysis Chamber. 02063_ S-10 Pest suffers critical hit (Burn). 02066_ Electrolysis Chamber disabled. 02069_ K-01 Serf collects debris. 02074_ Destroyed Flight Unit. 02074_ S-10 Pest destroyed. 02075_ K-01 Serf collects debris. 02082_ Wheel destroyed. 02091_ S-10 Pest destroyed. 02092_ K-01 Serf collects debris. 02093_ Lgt. Ion Engine destroyed. 02096_ K-01 Serf collects debris. 02096_ K-01 Serf destroyed. 02099_ Flight Unit melted. 02099_ S-10 Pest destroyed. 02100_ K-01 Serf collects debris. Map ----- +----------------------------------------------------+ | ???????????????????????????????????????????##! | | ????????????????????????????????????????????#### | | ???????????????????????????????????????????????# | | ???????????????????????????????????????######### | | ???????????????????????????????????????# ## | | ???????????????????????????????????????# ## | | ???????????????????????????????????????# ## | | ???????????????????????????????????????# ## | | ???????????????????????????????????????# # | | ???????????????????????????????????????# # | | ???????????????????????????????????????# + | | ???????????????????????????????????????# # | | ?????????????????????????????########### # | | ?????????????????????????????# # #### | | ?????????????????????????????# # [* #??? | | ?????????????????????????????# """ # !=*!%#??? | | ?????????????????????????????# """ #% ==/*#??? | | ?????????????????##########??# """ " " ####+###??? | | ?????????????????# #??# "R" #??# #????? | | ?????????????????# """ [ #??# """ #??#*#????? | | ?????????????????# """ #??# ####!###??? | | ?????????????????# """ #??#####+###### #??? | | ?????????????????# #?????# #??? | | ?????????????????# """% ####### #??? | | ?????????????????# " + % #??? | | ?????????????????# " k %*@####### ##### #??? | | ?????????????????# *% [#?????# #??####+#####? | | ?????????????????##+#####+#????# #?# #? | | ????????????????? ??????% ??? #?# """ #? | | ???????????????? ??????? < #?# """ #? | | ?????????????? ???????? #?# """ #? | | ?????????????###?????????####+## #?# #? | | ???????????????????????????????##### #?# """ "" #? | | ???????????????????????????????????? #?# """ T" #? | | ???????????????????????????????????? #?# """ "" #? | | ???????????????????????????????????? #?# #? | | ???????????????????????????????????? #?##########? | | ???????????????????????????????????? #???????????? | | ???????????????????????????????????? #???????????? | | ???????????????????????????????????? ????????????? | | ?????????????????????????????????????????????????? | | ?????????????????????????????????????????????????? | | ?????????????????????????????????????????????????? | | ?????????????????????????????????????????????????? | | ?????????????????????????????????????????????????? | | ?????????????????????????????????????????????????? | | ?????????????????????????????????????????????????? | | ?????????????????????????????????????????????????? | | ?????????????????????????????????????????????????? | | ?????????????????????????????????????????????????? | +----------------------------------------------------+ Best States ------------- Heat Dissipation 28 Energy Generation 10 Energy Capacity 250 Matter Stores 300 Matter Capacity 300 Sight Range 16 Terrain Scan Density 10 ECM Strength 1 Armor Coverage 225 Evasion (%) 55 Offensive Hacking 10 Item Schematics ----------------- None Robot Schematics ------------------ None Fabricated ------------ Nothing Alien Tech Used ----------------- None Achievements -------------- None Challenges ------------ None Game ------ Seed PropulsionDeliveryKatana Manual? 0 Play Time 00:15:18 Cumulative 9.3 hours Start 2024.01.10 @ 10:50:36 End 2024.01.10 @ 11:09:08 Sessions 1 Manual Loads 0 Difficulty Rogue Special Mode None Game No. 8 Rogue 6 Adventurer 2 Explorer 0 Win Type - Total 0 Types 0/0/0/0/0/0/0/0/0 Lore% 5 Gallery% 15 Achievement% 11 Wizard Run 0 Options --------- ASCII 0 Keyboard 0 Movement Arrows Keybinds 0 Fullscreen 1 Font 24/Smallcaps Map View 76x56 Tactical HUD 1 Map Filters NONE Filters NONE Steam 1 RUN: 290e7715-5316-4c87-88fa-906d17a31dd7